fUSD/lending_fUSD_20251003
["ID","MTS","AMOUNT","RATE_DAILY","PERIOD"]
[388906318,1759487433026,-692.31295391,0.00018408,2]
[388906335,1759487438516,-390.28402513,0.00018408,2]
[388906336,1759487438526,-815.0,0.00018408,2]
[388906337,1759487438536,-4237.0,0.00018408,2]
[388906338,1759487438546,-1181.0,0.00018408,2]
[388906339,1759487438556,-2258.33107622,0.00018408,2]
[388906340,1759487438573,-1141.66892378,0.00018408,2]
[388906341,1759487438583,-1264.0,0.00018408,2]
[388906342,1759487438593,-900.0,0.00018408,2]
[388906343,1759487438603,-4115.0,0.00018408,2]
[388906344,1759487438613,-163.90304267,0.0001843,2]
[388906345,1759487438623,-209.07797425,0.0001843,2]
[388906346,1759487438633,-195.0,0.0001843,2]
[388906347,1759487438642,-281.45,0.0001843,2]
[388906348,1759487438652,-250.0,0.0001843,2]
[388906349,1759487438661,-300.0,0.0001843,2]
[388906350,1759487438670,-420.0,0.00018543,2]
[388906351,1759487438680,-1000.0,0.0001863,2]
[388906352,1759487438689,-1680.0,0.00018635,2]
[388906353,1759487438699,-751.8291,0.0001872,2]
[388906354,1759487438709,-150.6,0.00018757,2]
[388906355,1759487438719,-150.0,0.00018757,2]
[388906356,1759487438729,-150.0,0.00018757,2]
[388906357,1759487438739,-150.0,0.00018757,2]
[388906358,1759487438749,-6080.97095935,0.000188,2]
[388906359,1759487438777,-854.00691663,0.000188,2]
[388906360,1759487438813,-553.21,0.000188,2]
[388906361,1759487440144,-1348.8259882,0.000188,2]
[388906362,1759487440155,-12115.6168618,0.000188,2]
[388906363,1759487440165,-2636.14898,0.0001881,2]
[388906364,1759487440175,-6311.14542942,0.0001882,2]
[388906365,1759487440231,-1368.41862361,0.0001882,2]
[388906366,1759487440266,-1459.25289269,0.0001882,2]
[388906367,1759487440275,-142.75313492,0.00018848,2]
[388906368,1759487440287,-57.24686508,0.00018848,2]
[388906369,1759487440296,-150.0,0.00018888,2]
[388906370,1759487440305,-150.0,0.00018888,2]
[388906371,1759487440315,-27.32516364,0.00018888,2]
[388906372,1759487440568,-122.67483636,0.00018888,2]
[388906373,1759487440578,-150.00000001,0.00018888,2]
[388906374,1759487440588,-155.44787524,0.00018888,2]
[388906375,1759487440598,-150.0,0.00018888,2]
[388906376,1759487440607,-283.88058946,0.00018888,2]
[388906377,1759487440617,-150.0,0.00018888,2]
[388906378,1759487440626,-150.0,0.00018888,2]
[388906379,1759487440635,-150.0,0.00018888,2]
[388906380,1759487440643,-150.0,0.00018888,2]
[388906381,1759487440651,-167.33720509,0.00018899,2]
[388906382,1759487440660,-500.0,0.00018899,2]
[388906383,1759487440669,-500.0,0.00018899,2]
[388906384,1759487440681,-219.44195607,0.00018899,2]
[388906385,1759487440690,-11956.01608429,0.000189,2]
[388906396,1759487443455,-6236.0,0.00018408,2]
[388906397,1759487443465,-857.02000671,0.000189,2]
[388906398,1759487443475,-3133.3540448,0.000189,2]
[388906399,1759487443485,-26916.4392497,0.000189,2]
[388906400,1759487443494,-10920.8762123,0.000189,2]
[388906401,1759487443503,-240.55671336,0.000189,2]
[388906402,1759487443512,-169.93081394,0.000189,2]
[388906403,1759487443522,-5000.0,0.000189,2]
[388906404,1759487443531,-6337.94200766,0.000189,2]
[388906405,1759487443540,-2636.14899,0.0001892,2]
[388906406,1759487443550,-500.0,0.00018973,2]
[388906407,1759487443559,-151.0430149,0.00018999,2]
[388906408,1759487443573,-680.4823,0.00018999,2]
[388906409,1759487443582,-10000.0,0.00018999,7]
[388906410,1759487443591,-10000.0,0.00018999,7]
[388906411,1759487443600,-41139.81156967,0.00019,2]
[388906413,1759487443610,-63834.63245921,0.00019,2]
[388906415,1759487443619,-3546.066776,0.00019,2]
[388906416,1759487443628,-151.0,0.00019,2]
[388906417,1759487443637,-9005.0,0.00019,2]
[388906418,1759487443646,-434.85376382,0.00019,2]
[388906419,1759487443655,-300.0,0.00019,2]
[388906421,1759487443664,-1684.64246401,0.00019,2]
[388906423,1759487443673,-271.264852,0.00019,2]
[388906425,1759487443682,-271.264852,0.00019,2]
[388906427,1759487443691,-271.264852,0.00019,2]
[388906429,1759487443701,-271.264852,0.00019,2]
[388906431,1759487443710,-151.0,0.00019,2]
[388906433,1759487443719,-151.0,0.00019,2]
[388906434,1759487443728,-151.0,0.00019,2]
[388906436,1759487443737,-151.0,0.00019,2]
[388906438,1759487443747,-1000.0,0.00019,2]
[388906440,1759487443756,-151.0,0.00019,2]
[388906442,1759487443765,-151.0,0.00019,2]
[388906443,1759487443774,-151.0,0.00019,2]
[388906445,1759487443783,-151.0,0.00019,2]
[388906447,1759487443792,-218.398325,0.00019,2]
[388906449,1759487443802,-6633.87808682,0.00019,2]
[388906451,1759487443811,-151.0,0.00019,2]
[388906453,1759487443820,-151.0,0.00019,2]
[388906455,1759487443829,-151.0,0.00019,2]
[388906458,1759487443839,-151.0,0.00019,2]
[388906461,1759487443848,-151.0,0.00019,2]
[388906464,1759487443857,-151.0,0.00019,2]
[388906467,1759487443866,-151.0,0.00019,2]
[388906470,1759487443875,-151.0,0.00019,2]
[388906472,1759487443884,-276.831313,0.00019,2]
[388906474,1759487443893,-151.0,0.00019,2]
[388906476,1759487443904,-151.0,0.00019,2]
[388906478,1759487443913,-151.0,0.00019,2]
[388906480,1759487443922,-151.0,0.00019,2]
[388906482,1759487443931,-151.0,0.00019,2]
[388906484,1759487443940,-151.0,0.00019,2]
[388906486,1759487443950,-151.0,0.00019,2]
[388906488,1759487443959,-500.0,0.00019,2]
[388906490,1759487443967,-151.0,0.00019,2]
[388906492,1759487443976,-187.429251,0.00019,2]
[388906494,1759487443986,-151.0,0.00019,2]
[388906496,1759487443995,-151.0,0.00019,2]
[388906498,1759487444005,-20952.63072597,0.00019135,2]
[388906500,1759487444015,-3231.38,0.00019151,2]
[388906502,1759487444024,-151.0,0.00019151,2]
[388906504,1759487444033,-151.0,0.00019151,2]
[388906506,1759487444042,-197.327196,0.00019151,2]
[388906508,1759487444051,-151.0,0.00019151,2]
[388906510,1759487444060,-151.0,0.00019151,2]
[388906512,1759487444070,-217.951384,0.00019151,2]
[388906514,1759487444079,-217.951384,0.00019151,2]
[388906517,1759487444088,-217.951384,0.00019151,2]
[388906518,1759487444097,-217.951384,0.00019151,2]
[388906520,1759487444107,-151.0,0.00019151,2]
[388906522,1759487444117,-2636.14899,0.0001916,2]
[388906524,1759487444126,-151.0,0.00019178,2]
[388906526,1759487444135,-151.0,0.00019178,2]
[388906528,1759487444144,-151.0,0.00019178,2]
[388906530,1759487444153,-151.0,0.00019178,2]
[388906532,1759487444162,-292.524379,0.00019178,2]
[388906534,1759487444171,-151.0,0.00019178,2]
[388906537,1759487444182,-151.0,0.00019178,2]
[388906538,1759487444191,-151.0,0.00019178,2]
[388906540,1759487444200,-295.064397,0.00019178,2]
[388906542,1759487444210,-151.0,0.00019178,2]
[388906544,1759487444219,-202.26938,0.00019178,2]
[388906546,1759487444228,-243.345944,0.00019178,2]
[388906548,1759487444237,-151.0,0.00019178,2]
[388906550,1759487444249,-151.0,0.00019178,2]
[388906552,1759487444258,-151.0,0.00019178,2]
[388906554,1759487444267,-151.0,0.00019178,2]
[388906556,1759487444275,-151.0,0.00019178,2]
[388906558,1759487444285,-207.22392399,0.00019178,2]
[388906560,1759487444296,-151.0,0.00019178,2]
[388906562,1759487444305,-3350.41,0.00019178,2]
[388906564,1759487444314,-19545.41,0.00019178,2]
[388906566,1759487444325,-158.986384,0.00019178,2]
[388906568,1759487444334,-158.986384,0.00019178,2]
[388906570,1759487444343,-158.986384,0.00019178,2]
[388906572,1759487444352,-158.986384,0.00019178,2]
[388906574,1759487444362,-5000.0,0.00019178,2]
[388906576,1759487444371,-6337.94200759,0.00019224,2]
[388906577,1759487444379,-706.037467,0.00019225,2]
[388906578,1759487444388,-210.86231713,0.00019227,2]
[388906579,1759487444396,-237.061805,0.00019228,2]
[388906580,1759487444405,-151.0,0.00019228,2]
[388906581,1759487444413,-151.0,0.00019228,2]
[388906582,1759487444422,-151.0,0.00019228,2]
[388906583,1759487444431,-271.264852,0.00019228,2]
[388906584,1759487444439,-271.264852,0.00019228,2]
[388906585,1759487444448,-271.264852,0.00019228,2]
[388906586,1759487444456,-271.264852,0.00019228,2]
[388906587,1759487444465,-151.0,0.00019228,2]
[388906588,1759487444474,-151.0,0.00019228,2]
[388906589,1759487444483,-151.0,0.00019228,2]
[388906590,1759487444493,-151.0,0.00019228,2]
[388906591,1759487444501,-151.0,0.00019228,2]
[388906592,1759487444510,-21174.40654225,0.00019228,2]
[388906593,1759487444519,-21174.4065422,0.00019228,2]
[388906594,1759487444527,-21174.4065422,0.00019228,2]
[388906595,1759487444536,-21174.4065422,0.00019228,2]
[388906596,1759487444544,-21174.4065422,0.00019228,2]
[388906597,1759487444553,-21174.4065422,0.00019228,2]
[388906598,1759487444563,-12472.17047354,0.00019228,2]
[388906670,1759487445287,-480.0,0.00019228,2]
[388906672,1759487445298,-8222.23606866,0.00019228,2]
[388906674,1759487445308,-21174.4065422,0.00019228,2]
[388906676,1759487445318,-21174.4065422,0.00019228,2]
[388906678,1759487445328,-2974.58754951,0.00019228,2]
[388906680,1759487445339,-500.0,0.00019228,2]
[388906683,1759487445351,-17699.81899269,0.00019228,2]
[388906685,1759487445362,-151.0,0.00019228,2]
[388906687,1759487445373,-151.0,0.00019228,2]
[388906689,1759487445383,-6687.9111593,0.00019238,2]
[388906691,1759487445392,-500.0,0.00019273,2]
[388906693,1759487445402,-500.0,0.00019274,2]
[388906695,1759487445411,-240.55671336,0.00019317,2]
[388906697,1759487445420,-169.93081393,0.00019386,2]
[388906699,1759487445430,-179.94809637,0.000194,2]
[388906701,1759487445440,-2636.14899,0.0001942,2]
[388906703,1759487445449,-14728.43404163,0.00019445,2]
[388906706,1759487445461,-6445.97250057,0.00019445,2]
[388906708,1759487445471,-150.0,0.0001947,2]
[388906710,1759487445480,-2048.48125613,0.0001947,2]
[388906712,1759487445492,-491.243374,0.0001947,2]
[388906715,1759487445513,-10000.0,0.00018999,7]
[388906717,1759487445523,-9432.14270468,0.0001947,2]
[388906860,1759487446854,-2525.4143355,0.00018999,7]
[388906863,1759487446871,-4181.81026415,0.00018999,7]
[388906865,1759487446881,-151.0,0.00019228,2]
[388906867,1759487446890,-8980.76339116,0.0001947,2]
[388906869,1759487446900,-1000.0,0.00019499,2]
[388906871,1759487446909,-242.40064082,0.000195,2]
[388906873,1759487446918,-173.02176591,0.000195,2]
[388906875,1759487446928,-299.05,0.00019504,2]
[388906877,1759487446937,-500.0,0.00019548,2]
[388906879,1759487446946,-6337.94200759,0.00019548,2]
[388906881,1759487446956,-166.06,0.00019554,2]
[388906883,1759487446965,-150.0,0.00019587,4]
[388906885,1759487446975,-171.01,0.0001959,2]
[388906887,1759487446984,-179.94809637,0.000196,2]
[388906889,1759487446994,-2636.14899,0.0001966,2]
[388906891,1759487447003,-819.0,0.00019667,2]
[388906893,1759487447013,-849.01262347,0.00019667,2]
[388906895,1759487447023,-152.0,0.00019667,2]
[388906897,1759487447033,-152.0,0.00019667,2]
[388906899,1759487447043,-152.0,0.00019667,2]
[388906901,1759487447052,-1231.0,0.00019667,2]
[388906903,1759487447062,-1231.0,0.00019667,2]
[388906905,1759487447072,-1231.0,0.00019667,2]
[388906907,1759487447082,-1231.0,0.00019667,2]
[388906909,1759487447092,-1231.0,0.00019667,2]
[388906911,1759487447102,-1231.0,0.00019667,2]
[388906913,1759487447112,-151.0,0.00019667,2]
[388906960,1759487447524,-151.0,0.00019667,2]
[388906962,1759487447534,-151.0,0.00019667,2]
[388906964,1759487447543,-1231.0,0.00019667,2]
[388906966,1759487447553,-151.0,0.00019667,2]
[388906968,1759487447563,-1231.0,0.00019667,2]
[388906970,1759487447576,-151.0,0.00019667,2]
[388906972,1759487447585,-151.0,0.00019667,2]
[388906974,1759487447594,-1350.54554297,0.00019667,2]
[388906976,1759487447603,-151.0,0.00019667,2]
[388906978,1759487447613,-151.0,0.00019667,2]
[388906980,1759487447623,-151.0,0.00019667,2]
[388906982,1759487447632,-1231.0,0.00019667,2]
[388906984,1759487447642,-151.0,0.00019667,2]
[388906986,1759487447651,-1231.0,0.00019667,2]
[388906988,1759487447661,-151.0,0.00019667,2]
[388906990,1759487447670,-1231.0,0.00019667,2]
[388906992,1759487447679,-151.0,0.00019667,2]
[388906994,1759487447689,-1231.0,0.00019667,2]
[388906996,1759487447699,-151.0,0.00019667,2]
[388906998,1759487447708,-1244.1741715,0.00019667,2]
[388907000,1759487447718,-151.0,0.00019667,2]
[388907002,1759487447728,-151.0,0.00019667,2]
[388907003,1759487447738,-151.0,0.00019667,2]
[388907005,1759487447748,-151.0,0.00019667,2]
[388907006,1759487447763,-151.0,0.00019667,2]
[388907007,1759487447772,-151.0,0.00019667,2]
[388907008,1759487447782,-151.0,0.00019667,2]
[388907009,1759487447792,-151.0,0.00019667,2]
[388907010,1759487447802,-154.95915446,0.00019667,2]
[388907011,1759487447813,-151.0,0.00019667,2]
[388907012,1759487447824,-151.0,0.00019667,2]
[388907013,1759487447834,-151.0,0.00019667,2]
[388907014,1759487447844,-151.0,0.00019667,2]
[388907015,1759487447855,-151.0,0.00019667,2]
[388907016,1759487447865,-151.0,0.00019667,2]
[388907017,1759487447875,-151.0,0.00019667,2]
[388907018,1759487447885,-151.0,0.00019667,2]
[388907019,1759487447895,-151.0,0.00019667,2]
[388907020,1759487447905,-169.90936696,0.00019667,2]
[388907022,1759487447915,-819.0,0.00019667,2]
[388907024,1759487447924,-819.0,0.00019667,2]
[388907026,1759487447934,-819.0,0.00019667,2]
[388907028,1759487447944,-819.0,0.00019667,2]
[388907030,1759487447955,-814.0,0.00019667,2]
[388907032,1759487447965,-152.0,0.00019667,2]
[388907034,1759487447974,-153.02759922,0.00019667,2]
[388907036,1759487447984,-151.0,0.00019667,2]
[388907038,1759487447994,-151.0,0.00019667,2]
[388907040,1759487448003,-151.0,0.00019667,2]
[388907043,1759487448013,-151.0,0.00019667,2]
[388907045,1759487448024,-151.0,0.00019667,2]
[388907047,1759487448034,-173.02176591,0.000197,2]
[388907049,1759487448043,-346.92554585,0.00019718,2]
[388907051,1759487448055,-248.71531821,0.00019718,2]
[388907053,1759487448064,-701.82,0.00019726,2]
[388907055,1759487448074,-156.587,0.00019726,2]
[388907057,1759487448083,-240.55671336,0.00019733,2]
[388907059,1759487448093,-1492.274688,0.0001974,2]
[388907061,1759487448103,-179.94809637,0.000198,2]
[388907063,1759487448113,-20952.63072597,0.00019806,2]
[388907065,1759487448122,-799.96540517,0.00019821,2]
[388907067,1759487448132,-1000.0,0.00019821,2]
[388907070,1759487448147,-500.0,0.00019822,2]
[388907072,1759487448157,-169.93081393,0.00019872,2]
[388907074,1759487448168,-173.02176591,0.000199,2]
[388907076,1759487448179,-182.66696838,0.000199,2]
[388907079,1759487448190,-275.27299918,0.000199,2]
[388907081,1759487448203,-2636.14899,0.0001991,2]
[388907083,1759487448213,-514.0,0.0001997,2]
[388907085,1759487448224,-36519.07066826,0.0001999,2]
[388907087,1759487448235,-151.0,0.0001999,2]
[388907089,1759487448247,-151.0,0.0001999,2]
[388907091,1759487448257,-151.0,0.0001999,2]
[388907093,1759487448267,-151.0,0.0001999,2]
[388907095,1759487448277,-269.737418,0.0001999,2]
[388907097,1759487448287,-151.0,0.0001999,2]
[388907099,1759487448296,-151.0,0.0001999,2]
[388907101,1759487448306,-151.0,0.0001999,2]
[388907103,1759487448316,-151.0,0.0001999,2]
[388907105,1759487448326,-151.0,0.0001999,2]
[388907107,1759487448336,-151.0,0.0001999,2]
[388907109,1759487448346,-271.264852,0.0001999,2]
[388907111,1759487448356,-271.264852,0.0001999,2]
[388907114,1759487448367,-271.264852,0.0001999,2]
[388907116,1759487448377,-271.264852,0.0001999,2]
[388907118,1759487448387,-151.0,0.0001999,2]
[388907120,1759487448397,-151.0,0.0001999,2]
[388907122,1759487448407,-151.0,0.0001999,2]
[388907124,1759487448418,-202.091278,0.0001999,2]
[388907126,1759487448427,-234.638624,0.0001999,2]
[388907128,1759487448437,-151.0,0.0001999,2]
[388907130,1759487448447,-151.0,0.0001999,2]
[388907132,1759487448457,-151.0,0.0001999,2]
[388907134,1759487448467,-300.779938,0.0001999,2]
[388907136,1759487448477,-151.0,0.0001999,2]
[388907137,1759487448486,-151.0,0.0001999,2]
[388907138,1759487448497,-151.0,0.0001999,2]
[388907139,1759487448506,-151.0,0.0001999,2]
[388907140,1759487448516,-158.986384,0.0001999,2]
[388907141,1759487448526,-158.986384,0.0001999,2]
[388907142,1759487448535,-158.986384,0.0001999,2]
[388907143,1759487448549,-158.986384,0.0001999,2]
[388907144,1759487448560,-151.0,0.0001999,2]
[388907145,1759487448574,-154.809944,0.0001999,2]
[388907146,1759487448584,-151.0,0.0001999,2]
[388907147,1759487448594,-151.0,0.0001999,2]
[388907148,1759487448604,-2824.7622266,0.0002,2]
[388907149,1759487448614,-8688.60880426,0.0002,2]
[388907150,1759487448624,-150.0,0.0002,2]
[388907151,1759487448634,-150.0,0.0002,2]
[388907152,1759487448644,-150.0,0.0002,2]
[388907153,1759487448654,-150.0,0.0002,2]
[388907154,1759487448664,-150.0,0.0002,2]
[388907155,1759487448674,-150.0,0.0002,2]
[388907156,1759487448683,-150.0,0.0002,2]
[388907157,1759487448693,-150.0,0.0002,2]
[388907158,1759487448703,-240.27912497,0.0002,2]
[388907159,1759487448713,-150.0,0.0002,2]
[388907160,1759487448723,-151.0,0.0002,2]
[388907161,1759487448733,-150.0,0.0002,2]
[388907162,1759487448744,-33961.783684,0.0002,5]
[388907163,1759487448756,-552.0441079,0.0002,14]
[388907164,1759487448777,-150.0,0.0002,2]
[388907165,1759487448787,-9210.9100192,0.0002,2]
[388907166,1759487448797,-150.0,0.0002,2]
[388907167,1759487448807,-150.0,0.0002,2]
[388907168,1759487448816,-150.0,0.0002,2]
[388907169,1759487448827,-150.0,0.0002,2]
[388907170,1759487448836,-150.0,0.0002,2]
[388907171,1759487448847,-150.0,0.0002,2]
[388907172,1759487448857,-150.0,0.0002,2]
[388907173,1759487448868,-150.0,0.0002,2]
[388907174,1759487448878,-150.0,0.0002,2]
[388907175,1759487448888,-150.0,0.0002,2]
[388907176,1759487448899,-38055.29580514,0.0002,2]
[388907177,1759487448912,-150.0,0.0002,2]
[388907178,1759487448922,-150.0,0.0002,2]
[388907179,1759487448933,-31574.51,0.0002,2]
[388907180,1759487448946,-150.0,0.0002,2]
[388907181,1759487448956,-1009.97,0.0002,10]
[388907182,1759487448966,-150.0,0.0002,2]
[388907183,1759487448976,-150.0,0.0002,2]
[388907184,1759487448986,-150.0,0.0002,2]
[388907185,1759487448996,-150.0,0.0002,2]
[388907186,1759487449007,-150.0,0.0002,2]
[388907187,1759487449017,-150.0,0.0002,2]
[388907188,1759487449027,-150.0,0.0002,2]
[388907189,1759487449037,-150.0,0.0002,2]
[388907190,1759487449047,-150.0,0.0002,2]
[388907191,1759487449057,-25348.00025978,0.0002,2]
[388907192,1759487449066,-150.0,0.0002,2]
[388907193,1759487449076,-15948.55539903,0.0002,2]
[388907194,1759487449086,-2104.95796919,0.0002,3]
[388907195,1759487449095,-721.88,0.0002,5]
[388907196,1759487449106,-150.0,0.0002,2]
[388907197,1759487449116,-150.0,0.0002,2]
[388907198,1759487449126,-150.0,0.0002,2]
[388907199,1759487449136,-500.0,0.0002,2]
[388907200,1759487449147,-150.0,0.0002,2]
[388907201,1759487449158,-2103.56905621,0.0002,2]
[388907202,1759487449170,-179.94809637,0.0002,2]
[388907203,1759487449180,-695.560415,0.0002,2]
[388907204,1759487449190,-150.0,0.0002,2]
[388907205,1759487449200,-150.0,0.0002,2]
[388907206,1759487449210,-150.0,0.0002,2]
[388907207,1759487449220,-150.0,0.0002,2]
[388907208,1759487449230,-151.0,0.0002,2]
[388907209,1759487449241,-151.0,0.0002,2]
[388907210,1759487449251,-179.221998,0.0002,2]
[388907211,1759487449260,-687.0366302,0.0002,2]
[388907212,1759487449270,-169.1,0.0002,2]
[388907213,1759487449280,-151.0,0.0002,2]
[388907214,1759487449290,-151.0,0.0002,2]
[388907215,1759487449300,-151.0,0.0002,2]
[388907216,1759487449311,-217.951384,0.0002,2]
[388907217,1759487449320,-217.951384,0.0002,2]
[388907218,1759487449331,-217.951384,0.0002,2]
[388907219,1759487449341,-217.951384,0.0002,2]
[388907220,1759487449352,-151.0,0.0002,2]
[388907221,1759487449362,-151.0,0.0002,2]
[388907222,1759487449372,-151.0,0.0002,2]
[388907223,1759487449382,-151.0,0.0002,2]
[388907224,1759487449392,-173.08154,0.0002,2]
[388907225,1759487449402,-151.0,0.0002,2]
[388907226,1759487449414,-224177.42623935,0.0002,2]
[388907227,1759487449429,-151.0,0.0002,2]
[388907228,1759487449438,-500.143412,0.0002,2]
[388907229,1759487449448,-151.0,0.0002,2]
[388907230,1759487449458,-178.390937,0.00020042,2]
[388907231,1759487449467,-151.0,0.00020042,2]
[388907232,1759487449477,-271.264852,0.00020042,2]
[388907233,1759487449487,-271.264852,0.00020042,2]
[388907234,1759487449503,-271.264852,0.00020042,2]
[388907235,1759487449514,-271.264852,0.00020042,2]
[388907236,1759487449524,-166.877477,0.00020042,2]
[388907237,1759487449533,-201.062383,0.00020042,2]
[388907238,1759487449543,-151.0,0.00020042,2]
[388907239,1759487449552,-21174.4065422,0.00020042,2]
[388907240,1759487449563,-199.82464997,0.00020071,2]
[388907241,1759487449576,-500.0,0.00020096,2]
[388907242,1759487449586,-572.89,0.00020129,2]
[388907243,1759487449596,-20952.63072597,0.00020141,2]
[388907244,1759487449606,-242.21169693,0.00020141,2]
[388907245,1759487449615,-240.55671336,0.0002015,2]
[388907246,1759487449625,-150.83,0.00020151,2]
[388907247,1759487449634,-177.79231226,0.00020176,11]
[388907248,1759487449655,-2103.56905621,0.000202,2]
[388907249,1759487449665,-284.59874389,0.00020212,2]
[388907250,1759487449675,-151.0,0.00020219,2]
[388907251,1759487449685,-151.0,0.00020219,2]
[388907252,1759487449695,-151.0,0.00020219,2]
[388907253,1759487449706,-151.0,0.00020219,2]
[388907254,1759487449716,-151.0,0.00020219,2]
[388907255,1759487449726,-151.0,0.00020219,2]
[388907256,1759487449736,-158.986384,0.00020219,2]
[388907257,1759487449746,-158.986384,0.00020219,2]
[388907258,1759487449756,-158.986384,0.00020219,2]
[388907259,1759487449766,-158.986384,0.00020219,2]
[388907260,1759487449775,-151.0,0.00020219,2]
[388907261,1759487449788,-151.0,0.00020219,2]
[388907262,1759487449798,-287.030612,0.00020219,2]
[388907263,1759487449808,-275.27299915,0.0002022,2]
[388907264,1759487449819,-150.11,0.00020226,2]
[388907265,1759487449829,-1090.0,0.00020237,2]
[388907266,1759487449839,-84.61757044,0.00020237,2]
[388907267,1759487449894,-66.38242956,0.00020237,2]
[388907268,1759487449904,-151.0,0.00020237,2]
[388907269,1759487449914,-151.0,0.00020237,2]
[388907270,1759487449923,-151.0,0.00020237,2]
[388907271,1759487449943,-151.0,0.00020247,2]
[388907272,1759487449952,-151.0,0.00020247,2]
[388907273,1759487449962,-163.293421,0.00020247,2]
[388907274,1759487449973,-151.0,0.00020247,2]
[388907275,1759487449983,-587.0,0.00020254,2]
[388907276,1759487449992,-274.89,0.00020257,2]
[388907277,1759487450002,-162.380719,0.00020274,2]
[388907278,1759487450011,-326.98579086,0.00020283,2]
[388907279,1759487450021,-150.0,0.00020287,4]
[388907280,1759487450033,-299.05,0.00020352,2]
[388907281,1759487450044,-3155.98,0.00020352,2]
[388907282,1759487450054,-369.37283782,0.00020354,2]
[388907283,1759487450064,-169.93081393,0.00020359,2]
[388907284,1759487450074,-180.0,0.00020361,2]
[388907285,1759487450084,-1218.6178767,0.00020368,2]
[388907286,1759487450094,-500.0,0.0002037,2]
[388907287,1759487450106,-182.66696835,0.00020379,2]
[388907288,1759487450118,-947.1,0.00020382,2]
[388907289,1759487450128,-807.29,0.00020382,2]
[388907290,1759487450137,-473.79,0.00020382,2]
[388907291,1759487450147,-807.29,0.00020382,2]
[388907292,1759487450156,-2103.56905621,0.000204,2]
[388907293,1759487450166,-411.75988478,0.00020424,2]
[388907294,1759487450175,-370.35923647,0.00020425,2]
[388907295,1759487450185,-2351.0,0.00020455,2]
[388907296,1759487450194,-154.318482,0.00020469,2]
[388907297,1759487450203,-151.0,0.00020469,2]
[388907298,1759487450213,-20952.63072597,0.00020476,2]
[388907299,1759487450222,-454.14693175,0.00020495,2]
[388907300,1759487450232,-500.0,0.0002052,2]
[388907301,1759487450248,-104.13429519,0.00020532,12]
[388907302,1759487450260,-73.65801707,0.00020532,12]
[388907303,1759487450270,-275.27299915,0.00020539,2]
[388907304,1759487450280,-151.87,0.00020564,2]
[388907305,1759487450290,-496.53397871,0.00020566,2]
[388907306,1759487450299,-150.18320881,0.00020567,2]
[388907307,1759487450365,-90.37350455,0.00020567,2]
[388907308,1759487450374,-154.18,0.00020585,2]
[388907309,1759487450383,-2103.56905621,0.000206,2]
[388907310,1759487450393,-538.92102567,0.00020636,2]
[388907311,1759487450403,-2706.90819235,0.00020639,2]
[388907312,1759487450414,-3296.41116998,0.00020639,2]
[388907313,1759487450430,-333.63935999,0.00020639,2]
[388907314,1759487450441,-546.03806591,0.00020639,2]
[388907315,1759487450462,-4146.4377723,0.00020639,2]
[388907316,1759487450473,-10144.97198167,0.00020639,2]
[388907317,1759487450483,-151.0,0.00020639,2]
[388907318,1759487450492,-151.0,0.00020639,2]